[Event "6th Cesme Open-A 2018"]
[Site "Cesme"]
[Date "2018.06.29"]
[Round "6.1"]
[White "Solodovnichenko, Yuri"]
[Black "Sumets, Andrey"]
[Result "1/2-1/2"]
[ECO "C11"]
[WhiteElo "2531"]
[BlackElo "2575"]
[Annotator "ChessBase"]
[PlyCount "175"]
[EventDate "2018.06.26"]
[EventType "swiss"]
[EventCountry "TUR"]
[SourceTitle "playchess.com"]
[Source "ChessBase"]
[SourceQuality "1"]
[TimeControl "5400+30"]

1. e4 {[%emt 0:00:30]} e6 {[%emt 0:04:00]} 2. d4 {[%emt 0:00:30]} d5 {[%emt 0:00:30]} 3. Nc3 {[%emt 0:00:30]} Nf6 {[%emt 0:00:30]} 4. e5 {[%emt 0:00:30]} Nfd7 {[%emt 0:00:00]} 5. f4 {[%emt 0:00:00]} c5 {[%emt 0:00:00]} 6. Nf3 {[%emt 0:00:00]} Nc6 {[%emt 0:00:00]} 7. Be3 {[%emt 0:00:00]} a6 {[%emt 0:00:00]} 8. Qd2 {[%emt 0:00:00]} b5 {[%emt 0:00:00]} 9. Bd3 {[%emt 0:00:00]} Qb6 {[%emt 0:15:00]} 10. Qf2 {[%emt 0:02:00]} cxd4 {[%emt 0:07:30]} 11. Nxd4 {[%emt 0:00:30]} Nxd4 {[%emt 0:00:30]} 12. Bxd4 {[%emt 0:01:30]} Bc5 {[%emt 0:00:00]} 13. Bxc5 {[%emt 0:00:30]} Nxc5 {[%emt 0:01:00]} 14. b4 {[%emt 0:02:30]} Nd7 {[%emt 0:04:30]} 15. a4 {[%emt 0:08:30]} Qc7 {[%emt 0:00:30]} 16. Qd4 {[%emt 0:06:30]} bxa4 {[%emt 0:02:30]} 17. Nxa4 {[%emt 0:05:30]} Bb7 {[%emt 0:03:30]} 18. O-O {[%emt 0:01:30]} O-O {[%emt 0:00:30]} 19. Ra3 {[%emt 0:00:30]} Rfc8 {[%emt 0:05:30]} 20. f5 {[%emt 0:04:30]} h6 {[%emt 0:08:30]} 21. f6 {[%emt 0:11:30]} Qxe5 {[%emt 0:07:30]} 22. Qxe5 {[%emt 0:01:30]} Nxe5 {[%emt 0:00:30]} 23. Nb6 {[%emt 0:00:00]} Nxd3 {[%emt 0:05:30]} 24. cxd3 {[%emt 0:00:00]} d4 {[%emt 0:00:30]} 25. Nxa8 {[%emt 0:03:30]} Rc2 {[%emt 0:01:30]} 26. Rf4 {[%emt 0:03:30]} Rxg2+ {[%emt 0:00:30]} 27. Kf1 {[%emt 0:00:30]} Bxa8 {[%emt 0:00:30]} 28. Rxd4 {[%emt 0:06:30]} Bf3 {[%emt 0:00:30]} 29. Rxa6 {[%emt 0:05:30]} Rxh2 {[%emt 0:00:30]} 30. Rd8+ {[%emt 0:05:30]} Kh7 {[%emt 0:00:30]} 31. Rxe6 {[%emt 0:00:00]} g5 {[%emt 0:09:30]} 32. Re7 {[%emt 0:15:40]} Kg6 {[%emt 0:00:30]} 33. Rdd7 {[%emt 0:00:13]} Bg4 {[%emt 0:02:30]} 34. Rb7 {[%emt 0:10:24]} Be6 {[%emt 0:00:30]} 35. Rxe6 {[%emt 0:01:28]} fxe6 {[%emt 0:00:30]} 36. f7 {[%emt 0:00:30]} Kg7 {[%emt 0:00:30]} 37. Kg1 {[%emt 0:00:00]} Rb2 {[%emt 0:01:30]} 38. d4 {[%emt 0:04:32]} Kf8 {[%emt 0:02:07]} 39. b5 {[%emt 0:01:49]} h5 {[%emt 0:01:45]} 40. b6 {[%emt 0:00:58]} h4 {[%emt 0:00:06]} 41. d5 {[%emt 0:00:36]} exd5 {[%emt 0:00:30]} 42. Rd7 {[%emt 0:00:00]} Rxb6 {[%emt 0:01:03]} 43. Rxd5 {[%emt 0:00:00]} g4 {[%emt 0:01:00]} 44. Rh5 {[%emt 0:00:52]} Rb1+ {[%emt 0:01:17]} 45. Kg2 {[%emt 0:00:53]} Rb2+ {[%emt 0:00:48]} 46. Kh1 {[%emt 0:00:12]} h3 {[%emt 0:00:23]} 47. Rg5 {[%emt 0:00:50]} Rb4 {[%emt 0:00:13]} 48. Kh2 {[%emt 0:00:00]} Kxf7 {[%emt 0:00:30]} 49. Kg3 {[%emt 0:00:29]} Kf6 {[%emt 0:00:00]} 50. Rg8 {[%emt 0:00:43]} Re4 {[%emt 0:00:34]} 51. Ra8 {[%emt 0:00:47]} Re1 {[%emt 0:01:40]} 52. Ra6+ {[%emt 0:00:29]} Kf5 {[%emt 0:00:13]} 53. Ra5+ {[%emt 0:00:30]} Re5 {[%emt 0:00:00]} 54. Ra3 {[%emt 0:00:00]} Rd5 {[%emt 0:01:39]} 55. Rb3 {[%emt 0:00:05]} Ra5 {[%emt 0:01:18]} 56. Rc3 {[%emt 0:00:02]} Kg5 {[%emt 0:07:12]} 57. Rb3 {[%emt 0:00:32]} Kh5 {[%emt 0:00:30]} 58. Rc3 {[%emt 0:00:30]} Rg5 {[%emt 0:00:00]} 59. Ra3 {[%emt 0:00:00]} Kg6 {[%emt 0:00:21]} 60. Ra6+ {[%emt 0:00:00]} Kf7 {[%emt 0:00:15]} 61. Ra7+ {[%emt 0:00:19]} Ke6 {[%emt 0:00:30]} 62. Ra6+ {[%emt 0:00:30]} Kd7 {[%emt 0:00:00]} 63. Rh6 {[%emt 0:00:42]} Rg8 {[%emt 0:00:00]} 64. Ra6 {[%emt 0:00:30]} Kc7 {[%emt 0:00:00]} 65. Rh6 {[%emt 0:00:00]} Kb7 {[%emt 0:00:16]} 66. Rd6 {[%emt 0:00:09]} Kc7 {[%emt 0:00:25]} 67. Rh6 {[%emt 0:00:30]} Kd7 {[%emt 0:00:00]} 68. Ra6 {[%emt 0:00:00]} Ke7 {[%emt 0:00:01]} 69. Rh6 {[%emt 0:00:22]} Kf7 {[%emt 0:00:30]} 70. Ra6 {[%emt 0:00:30]} Rg6 {[%emt 0:00:00]} 71. Ra7+ {[%emt 0:00:36]} Kf6 {[%emt 0:00:07]} 72. Ra6+ {[%emt 0:00:30]} Kf5 {[%emt 0:00:30]} 73. Ra5+ {[%emt 0:00:30]} Ke4 {[%emt 0:00:30]} 74. Ra4+ {[%emt 0:00:00]} Kd3 {[%emt 0:00:00]} 75. Ra3+ {[%emt 0:00:00]} Kc2 {[%emt 0:00:00]} 76. Ra2+ {[%emt 0:00:00]} Kc1 {[%emt 0:00:28]} 77. Ra1+ {[%emt 0:00:14]} Kb2 {[%emt 0:00:30]} 78. Re1 {[%emt 0:00:00]} Kc2 {[%emt 0:00:31]} 79. Ra1 {[%emt 0:00:00]} Kc3 {[%emt 0:01:48]} 80. Ra2 {[%emt 0:00:45]} Rg8 {[%emt 0:00:32]} 81. Ra1 {[%emt 0:00:08]} Rh8 {[%emt 0:02:00]} 82. Kxg4 {[%emt 0:02:06]} h2 {[%emt 0:00:30]} 83. Rh1 {[%emt 0:00:02]} Kd3 {[%emt 0:00:11]} 84. Kg3 {[%emt 0:00:30]} Ke3 {[%emt 0:00:02]} 85. Re1+ {[%emt 0:00:10]} Kd2 {[%emt 0:00:30]} 86. Rh1 {[%emt 0:00:00]} Ke2 {[%emt 0:00:00]} 87. Rxh2+ {[%emt 0:00:16]} Rxh2 {[%emt 0:00:26]} 88. Kxh2 {[%emt 0:00:30]} 1/2-1/2

[Event "6th Cesme Open-A 2018"]
[Site "Cesme"]
[Date "2018.06.29"]
[Round "6.2"]
[White "Baklan, Vladimir"]
[Black "Yilmazyerli, Mert"]
[Result "1/2-1/2"]
[ECO "B09"]
[WhiteElo "2595"]
[BlackElo "2491"]
[Annotator "ChessBase"]
[PlyCount "22"]
[EventDate "2018.06.26"]
[EventType "swiss"]
[EventCountry "TUR"]
[SourceTitle "playchess.com"]
[Source "ChessBase"]
[SourceQuality "1"]
[TimeControl "5400+30"]

1. e4 {[%emt 0:00:30]} d6 {[%emt 0:06:00]} 2. d4 {[%emt 0:00:00]} Nf6 {[%emt 0:00:30]} 3. Nc3 {[%emt 0:01:00]} g6 {[%emt 0:00:30]} 4. f4 {[%emt 0:03:30]} Bg7 {[%emt 0:04:30]} 5. Bd3 {[%emt 0:02:30]} O-O {[%emt 0:00:30]} 6. e5 {[%emt 0:00:00]} dxe5 {[%emt 0:00:30]} 7. dxe5 {[%emt 0:01:00]} Nd5 {[%emt 0:00:30]} 8. Nxd5 {[%emt 0:01:30]} Qxd5 {[%emt 0:00:30]} 9. Qe2 {[%emt 0:00:00]} Bf5 {[%emt 0:07:30]} 10. Bxf5 {[%emt 0:06:00]} gxf5 {[%emt 0:00:30]} 11. Nf3 {[%emt 0:02:30]} Nc6 {[%emt 0:01:30]} 1/2-1/2

[Event "6th Cesme Open-A 2018"]
[Site "Cesme"]
[Date "2018.06.29"]
[Round "6.3"]
[White "Koksal, Ege"]
[Black "Rasulov, Vugar"]
[Result "0-1"]
[ECO "B41"]
[WhiteElo "2356"]
[BlackElo "2516"]
[Annotator "ChessBase"]
[PlyCount "94"]
[EventDate "2018.06.26"]
[EventType "swiss"]
[EventCountry "TUR"]
[SourceTitle "playchess.com"]
[Source "ChessBase"]
[SourceQuality "1"]
[TimeControl "5400+30"]

1. d4 {[%emt 0:01:30]} e6 {[%emt 0:03:00]} 2. Nf3 {[%emt 0:00:30]} c5 {[%emt 0:00:30]} 3. c4 {[%emt 0:00:30]} cxd4 {[%emt 0:00:30]} 4. Nxd4 {[%emt 0:00:30]} Nf6 {[%emt 0:00:30]} 5. Nc3 {[%emt 0:00:30]} a6 {[%emt 0:03:30]} 6. Nc2 {[%emt 0:02:30]} Qc7 {[%emt 0:01:30]} 7. e4 {[%emt 0:00:30]} b6 {[%emt 0:00:30]} 8. Bd3 {[%emt 0:02:30]} Bb7 {[%emt 0:02:30]} 9. O-O {[%emt 0:00:30]} d6 {[%emt 0:00:30]} 10. f3 {[%emt 0:02:30]} Nbd7 {[%emt 0:01:30]} 11. Be3 {[%emt 0:05:30]} Be7 {[%emt 0:01:30]} 12. Qd2 {[%emt 0:01:30]} O-O {[%emt 0:00:30]} 13. Be2 {[%emt 0:00:30]} Rac8 {[%emt 0:00:30]} 14. Rac1 {[%emt 0:00:30]} Qb8 {[%emt 0:01:30]} 15. Rfd1 {[%emt 0:00:30]} Rfe8 {[%emt 0:04:30]} 16. Bf1 {[%emt 0:01:30]} h5 {[%emt 0:06:30]} 17. Bf4 {[%emt 0:02:30]} Ne5 {[%emt 0:02:30]} 18. Na3 {[%emt 0:00:30]} h4 {[%emt 0:09:30]} 19. h3 {[%emt 0:01:30]} Rcd8 {[%emt 0:14:30]} 20. Bg5 {[%emt 0:10:30]} d5 {[%emt 0:01:30]} 21. cxd5 {[%emt 0:02:30]} exd5 {[%emt 0:01:30]} 22. Bxf6 {[%emt 0:03:30]} dxe4 {[%emt 0:03:30]} 23. Bxe5 {[%emt 0:00:30]} Qxe5 {[%emt 0:00:00]} 24. Qe1 {[%emt 0:02:30]} b5 {[%emt 0:06:00]} 25. Kh1 {[%emt 0:03:30]} Rxd1 {[%emt 0:03:30]} 26. Rxd1 {[%emt 0:00:30]} Bd6 {[%emt 0:04:30]} 27. Rxd6 {[%emt 0:15:30]} Qxd6 {[%emt 0:00:30]} 28. Nxe4 {[%emt 0:00:30]} Bxe4 {[%emt 0:00:30]} 29. fxe4 {[%emt 0:00:30]} Qd4 {[%emt 0:00:30]} 30. Qc3 {[%emt 0:00:30]} Qxe4 {[%emt 0:00:30]} 31. Nc2 {[%emt 0:00:30]} Rd8 {[%emt 0:00:30]} 32. Ne3 {[%emt 0:01:30]} Re8 {[%emt 0:01:30]} 33. Nc2 {[%emt 0:03:30]} Qe6 {[%emt 0:00:30]} 34. a3 {[%emt 0:07:30]} Rc8 {[%emt 0:00:30]} 35. Qd2 {[%emt 0:01:30]} Qf6 {[%emt 0:00:30]} 36. Ne3 {[%emt 0:00:30]} Re8 {[%emt 0:00:30]} 37. Kg1 {[%emt 0:03:30]} Qg5 {[%emt 0:00:30]} 38. Kf2 {[%emt 0:00:30]} Qg3+ {[%emt 0:00:30]} 39. Ke2 {[%emt 0:00:30]} f5 {[%emt 0:00:00]} 40. Qd5+ {[%emt 0:01:30]} Kh8 {[%emt 0:00:00]} 41. Qc5 {[%emt 0:00:00]} Re5 {[%emt 0:01:30]} 42. Qb6 {[%emt 0:03:00]} f4 {[%emt 0:01:30]} 43. Qd8+ {[%emt 0:05:23]} Kh7 {[%emt 0:00:30]} 44. Kd1 {[%emt 0:00:30]} Rxe3 {[%emt 0:00:30]} 45. Bd3+ {[%emt 0:00:12]} Rxd3+ {[%emt 0:00:30]} 46. Kc2 {[%emt 0:00:30]} Rxd8 {[%emt 0:00:30]} 47. Kb1 {[%emt 0:00:00]} Qb3 {[%emt 0:00:00]} 0-1

[Event "6th Cesme Open-A 2018"]
[Site "Cesme"]
[Date "2018.06.29"]
[Round "6.4"]
[White "Sanal, Vahap"]
[Black "Malakhatko, Vadim"]
[Result "1/2-1/2"]
[ECO "D78"]
[WhiteElo "2510"]
[BlackElo "2499"]
[Annotator "ChessBase"]
[PlyCount "124"]
[EventDate "2018.06.26"]
[EventType "swiss"]
[EventCountry "TUR"]
[SourceTitle "playchess.com"]
[Source "ChessBase"]
[SourceQuality "1"]
[TimeControl "5400+30"]

1. Nf3 {[%emt 0:02:30]} d5 {[%emt 0:01:00]} 2. g3 {[%emt 0:00:00]} g6 {[%emt 0:00:00]} 3. c4 {[%emt 0:01:00]} c6 {[%emt 0:02:00]} 4. Bg2 {[%emt 0:07:30]} Bg7 {[%emt 0:00:00]} 5. O-O {[%emt 0:00:30]} Nf6 {[%emt 0:00:00]} 6. b3 {[%emt 0:00:00]} Ne4 {[%emt 0:00:30]} 7. d4 {[%emt 0:00:00]} O-O {[%emt 0:00:30]} 8. Bb2 {[%emt 0:00:30]} Bf5 {[%emt 0:00:00]} 9. Nc3 {[%emt 0:02:30]} Nxc3 {[%emt 0:00:00]} 10. Bxc3 {[%emt 0:00:30]} Be4 {[%emt 0:00:30]} 11. Rc1 {[%emt 0:02:30]} a5 {[%emt 0:02:30]} 12. e3 {[%emt 0:05:30]} Nd7 {[%emt 0:01:30]} 13. cxd5 {[%emt 0:03:30]} cxd5 {[%emt 0:03:30]} 14. Bh3 {[%emt 0:04:30]} Bxf3 {[%emt 0:06:30]} 15. Qxf3 {[%emt 0:00:30]} e6 {[%emt 0:00:30]} 16. Qe2 {[%emt 0:02:30]} Qb6 {[%emt 0:00:30]} 17. Rc2 {[%emt 0:03:30]} Rfd8 {[%emt 0:02:30]} 18. Rfc1 {[%emt 0:00:30]} Bf8 {[%emt 0:00:00]} 19. Bf1 {[%emt 0:05:30]} Ba3 {[%emt 0:04:00]} 20. Rb1 {[%emt 0:14:30]} Rdc8 {[%emt 0:02:30]} 21. f3 {[%emt 0:05:30]} Rc6 {[%emt 0:07:30]} 22. Be1 {[%emt 0:00:30]} Qc7 {[%emt 0:02:30]} 23. Rxc6 {[%emt 0:01:30]} bxc6 {[%emt 0:00:30]} 24. Rd1 {[%emt 0:01:30]} Qb6 {[%emt 0:11:30]} 25. Bf2 {[%emt 0:02:30]} a4 {[%emt 0:02:30]} 26. Rb1 {[%emt 0:02:30]} axb3 {[%emt 0:04:30]} 27. Rxb3 {[%emt 0:00:00]} Qa7 {[%emt 0:00:30]} 28. Qc2 {[%emt 0:03:00]} c5 {[%emt 0:01:30]} 29. e4 {[%emt 0:02:30]} c4 {[%emt 0:06:30]} 30. Rb5 {[%emt 0:00:00]} Rb8 {[%emt 0:00:30]} 31. Qb1 {[%emt 0:06:00]} Rxb5 {[%emt 0:05:30]} 32. Qxb5 {[%emt 0:00:30]} Nf6 {[%emt 0:01:30]} 33. Be2 {[%emt 0:01:30]} Kg7 {[%emt 0:04:30]} 34. g4 {[%emt 0:01:54]} h6 {[%emt 0:03:30]} 35. h4 {[%emt 0:00:10]} Qc7 {[%emt 0:01:30]} 36. Qa4 {[%emt 0:03:41]} Be7 {[%emt 0:06:05]} 37. e5 {[%emt 0:02:11]} Nd7 {[%emt 0:00:52]} 38. f4 {[%emt 0:01:53]} Nb6 {[%emt 0:00:57]} 39. Qc2 {[%emt 0:00:16]} Qd7 {[%emt 0:01:20]} 40. Bd1 {[%emt 0:00:37]} Bd8 {[%emt 0:00:51]} 41. Kf1 {[%emt 0:03:10]} Nc8 {[%emt 0:00:24]} 42. Qa4 {[%emt 0:00:50]} Qxa4 {[%emt 0:01:49]} 43. Bxa4 {[%emt 0:00:30]} Ne7 {[%emt 0:00:00]} 44. Ke2 {[%emt 0:04:49]} h5 {[%emt 0:00:20]} 45. g5 {[%emt 0:00:13]} Bb6 {[%emt 0:00:30]} 46. Kd2 {[%emt 0:00:10]} Nf5 {[%emt 0:00:33]} 47. Kc3 {[%emt 0:00:30]} Ba5+ {[%emt 0:00:30]} 48. Kc2 {[%emt 0:00:00]} Kf8 {[%emt 0:00:49]} 49. Bd7 {[%emt 0:01:42]} Ke7 {[%emt 0:00:30]} 50. Bc8 {[%emt 0:00:30]} Kd8 {[%emt 0:00:30]} 51. Ba6 {[%emt 0:00:00]} Bb6 {[%emt 0:08:30]} 52. Kc3 {[%emt 0:00:00]} Ba5+ {[%emt 0:00:41]} 53. Kc2 {[%emt 0:00:00]} Bb6 {[%emt 0:00:47]} 54. Kc3 {[%emt 0:00:00]} Ba5+ {[%emt 0:00:30]} 55. Kc2 {[%emt 0:00:20]} Kc7 {[%emt 0:00:30]} 56. Bb5 {[%emt 0:00:30]} Be1 {[%emt 0:00:30]} 57. Ba6 {[%emt 0:00:30]} Ba5 {[%emt 0:00:30]} 58. Bb5 {[%emt 0:00:30]} Be1 {[%emt 0:00:30]} 59. Bg1 {[%emt 0:00:30]} Ba5 {[%emt 0:00:30]} 60. Bf2 {[%emt 0:00:30]} Ne7 {[%emt 0:00:30]} 61. a4 {[%emt 0:00:30]} Nc6 {[%emt 0:00:30]} 62. Bg3 {[%emt 0:00:30]} Bb4 {[%emt 0:00:30]} 1/2-1/2

[Event "6th Cesme Open-A 2018"]
[Site "Cesme"]
[Date "2018.06.29"]
[Round "6.5"]
[White "Odeev, Handszar"]
[Black "Sadikhov, Ulvi"]
[Result "1/2-1/2"]
[ECO "C41"]
[WhiteElo "2415"]
[BlackElo "2484"]
[Annotator "ChessBase"]
[PlyCount "84"]
[EventDate "2018.06.26"]
[EventType "swiss"]
[EventCountry "TUR"]
[SourceTitle "playchess.com"]
[Source "ChessBase"]
[SourceQuality "1"]
[TimeControl "5400+30"]

1. e4 {[%emt 0:05:30]} d6 {[%emt 0:02:00]} 2. d4 {[%emt 0:00:30]} Nf6 {[%emt 0:00:30]} 3. Nc3 {[%emt 0:00:30]} e5 {[%emt 0:00:00]} 4. Nf3 {[%emt 0:03:30]} Nbd7 {[%emt 0:00:00]} 5. Bd3 {[%emt 0:08:30]} Be7 {[%emt 0:00:00]} 6. Ne2 {[%emt 0:00:00]} O-O {[%emt 0:02:00]} 7. Ng3 {[%emt 0:11:00]} Re8 {[%emt 0:00:30]} 8. O-O {[%emt 0:00:30]} Bf8 {[%emt 0:00:30]} 9. Re1 {[%emt 0:02:30]} g6 {[%emt 0:00:30]} 10. c3 {[%emt 0:00:30]} Bg7 {[%emt 0:02:30]} 11. h3 {[%emt 0:01:30]} b6 {[%emt 0:02:30]} 12. a4 {[%emt 0:05:30]} a6 {[%emt 0:01:30]} 13. Bg5 {[%emt 0:01:30]} Bb7 {[%emt 0:01:30]} 14. Qd2 {[%emt 0:00:30]} c5 {[%emt 0:01:30]} 15. d5 {[%emt 0:12:30]} Qc7 {[%emt 0:01:30]} 16. c4 {[%emt 0:00:30]} Bc8 {[%emt 0:07:30]} 17. Bh6 {[%emt 0:03:30]} Nf8 {[%emt 0:03:30]} 18. Nh4 {[%emt 0:04:30]} Qe7 {[%emt 0:01:30]} 19. Bg5 {[%emt 0:00:30]} Qc7 {[%emt 0:01:30]} 20. Rf1 {[%emt 0:02:30]} N6d7 {[%emt 0:05:30]} 21. b3 {[%emt 0:02:30]} Rb8 {[%emt 0:00:30]} 22. Rae1 {[%emt 0:00:30]} Rb7 {[%emt 0:01:30]} 23. Bh6 {[%emt 0:03:30]} Qd8 {[%emt 0:16:30]} 24. Bxg7 {[%emt 0:03:30]} Qxh4 {[%emt 0:06:30]} 25. Bh6 {[%emt 0:00:00]} f6 {[%emt 0:00:30]} 26. Be3 {[%emt 0:00:00]} a5 {[%emt 0:04:30]} 27. Kh2 {[%emt 0:01:30]} Nb8 {[%emt 0:04:30]} 28. f4 {[%emt 0:00:30]} Rf7 {[%emt 0:01:30]} 29. Rf2 {[%emt 0:01:30]} exf4 {[%emt 0:00:30]} 30. Bxf4 {[%emt 0:03:30]} Nbd7 {[%emt 0:00:30]} 31. Bxd6 {[%emt 0:01:30]} Ne5 {[%emt 0:00:30]} 32. Bxe5 {[%emt 0:00:30]} Rxe5 {[%emt 0:00:30]} 33. Qf4 {[%emt 0:09:27]} Qxf4 {[%emt 0:00:30]} 34. Rxf4 {[%emt 0:00:00]} Nd7 {[%emt 0:00:00]} 35. Nf1 {[%emt 0:01:07]} Re8 {[%emt 0:01:00]} 36. Nd2 {[%emt 0:00:20]} Rfe7 {[%emt 0:03:30]} 37. Ref1 {[%emt 0:00:34]} Kg7 {[%emt 0:00:30]} 38. Bc2 {[%emt 0:00:35]} h5 {[%emt 0:01:30]} 39. R4f2 {[%emt 0:01:42]} Rf8 {[%emt 0:00:30]} 40. Nf3 {[%emt 0:00:11]} Ne5 {[%emt 0:01:30]} 41. Rd1 {[%emt 0:03:15]} Bd7 {[%emt 0:00:30]} 42. Rdd2 {[%emt 0:02:52]} Nf7 {[%emt 0:00:30]} 1/2-1/2

[Event "6th Cesme Open-A 2018"]
[Site "Cesme"]
[Date "2018.06.29"]
[Round "6.6"]
[White "Cansun, Can Alp"]
[Black "Oleksiyenko, Mykhaylo"]
[Result "1/2-1/2"]
[ECO "B47"]
[WhiteElo "1918"]
[BlackElo "2604"]
[Annotator "ChessBase"]
[PlyCount "79"]
[EventDate "2018.06.26"]
[EventType "swiss"]
[EventCountry "TUR"]
[SourceTitle "playchess.com"]
[Source "ChessBase"]
[SourceQuality "1"]
[TimeControl "5400+30"]

1. e4 {[%emt 0:00:30]} c5 {[%emt 0:01:00]} 2. Nf3 {[%emt 0:00:30]} e6 {[%emt 0:00:30]} 3. d4 {[%emt 0:00:30]} cxd4 {[%emt 0:00:30]} 4. Nxd4 {[%emt 0:00:30]} Nc6 {[%emt 0:00:00]} 5. Nc3 {[%emt 0:00:00]} Qc7 {[%emt 0:00:00]} 6. g3 {[%emt 0:00:00]} a6 {[%emt 0:00:00]} 7. Bg2 {[%emt 0:00:30]} h5 {[%emt 0:00:00]} 8. h3 {[%emt 0:01:30]} h4 {[%emt 0:03:30]} 9. g4 {[%emt 0:01:30]} Nge7 {[%emt 0:00:00]} 10. O-O {[%emt 0:04:30]} Ng6 {[%emt 0:00:00]} 11. Re1 {[%emt 0:03:30]} Be7 {[%emt 0:04:30]} 12. Nf5 {[%emt 0:15:30]} O-O {[%emt 0:19:30]} 13. Nxe7+ {[%emt 0:10:30]} Ncxe7 {[%emt 0:00:00]} 14. Be3 {[%emt 0:04:30]} Nf4 {[%emt 0:05:00]} 15. Bxf4 {[%emt 0:09:30]} Qxf4 {[%emt 0:00:30]} 16. e5 {[%emt 0:00:30]} f5 {[%emt 0:00:30]} 17. exf6 {[%emt 0:00:30]} gxf6 {[%emt 0:08:30]} 18. Ne2 {[%emt 0:03:30]} Qb4 {[%emt 0:03:30]} 19. Qc1 {[%emt 0:09:30]} Qc5 {[%emt 0:03:30]} 20. Nf4 {[%emt 0:01:30]} Qg5 {[%emt 0:03:30]} 21. Nd3 {[%emt 0:00:30]} Qxc1 {[%emt 0:00:30]} 22. Raxc1 {[%emt 0:00:30]} Ra7 {[%emt 0:00:30]} 23. c4 {[%emt 0:00:30]} b5 {[%emt 0:00:30]} 24. cxb5 {[%emt 0:00:30]} axb5 {[%emt 0:00:30]} 25. Nb4 {[%emt 0:00:30]} d5 {[%emt 0:00:30]} 26. Rc5 {[%emt 0:00:30]} Bd7 {[%emt 0:00:30]} 27. Bf1 {[%emt 0:00:30]} Rc8 {[%emt 0:00:30]} 28. Rec1 {[%emt 0:00:30]} Rxc5 {[%emt 0:00:30]} 29. Rxc5 {[%emt 0:00:30]} Rb7 {[%emt 0:09:30]} 30. f4 {[%emt 0:08:30]} Kf7 {[%emt 0:01:30]} 31. Kf2 {[%emt 0:04:27]} Ng6 {[%emt 0:10:30]} 32. f5 {[%emt 0:04:29]} exf5 {[%emt 0:06:30]} 33. gxf5 {[%emt 0:00:07]} Ne5 {[%emt 0:01:46]} 34. Nxd5 {[%emt 0:03:15]} Bxf5 {[%emt 0:01:24]} 35. Rc7+ {[%emt 0:00:20]} Rxc7 {[%emt 0:00:23]} 36. Nxc7 {[%emt 0:00:30]} Nd3+ {[%emt 0:01:33]} 37. Ke3 {[%emt 0:00:30]} Nxb2 {[%emt 0:00:30]} 38. Nxb5 {[%emt 0:00:29]} Be6 {[%emt 0:00:00]} 39. Nc3 {[%emt 0:00:56]} Nc4+ {[%emt 0:02:38]} 40. Ke4 {[%emt 0:00:30]} 1/2-1/2